{"text_format":"1","workbook":"xlsx","n_sheets":11,"sheets":["Dataset","Single Column","Entire Rows","Intervals","Last Row","Copy Selected","All from Above","Clear Copy Paste","Shift Down","Shift Down Multiple","Multiple Copies"],"not_rendered":{"charts":0,"images":0,"macros":1,"external_links":0,"defined_names":0,"comments":0,"pivot_tables":0},"unopened":[],"bounds":{"document_bytes":16777216,"sheet_cells":100000,"rows_first":2000,"rows_last":500,"rows_between":2000,"halvings":0,"cell_chars":16384,"cell_head_chars":4096},"cells_cut":0,"cells_raw":0,"read":"whole","date_system":"1900"}

{"sheet":"Dataset","index":0,"n_rows":8,"n_cols":4,"rows_kept":8,"cut":false,"hidden":false,"merged":[[1,1,1,3]]}
[]
[null,"VBA to Copy Formula from Cell Above"]
[]
[null,"Operations","Description","Formula"]
[null,{"$f":"4+2","v":6},"<< formula inside cell B5 is >>","=4+2"]
[null,{"$f":"4-2","v":2},"<< formula inside cell B6 is >>","=4-2"]
[null,{"$f":"4*2","v":8},"<< formula inside cell B7 is >>","=4*2"]
[null,{"$f":"4/2","v":2},"<< formula inside cell B8 is >>","=4/2"]

{"sheet":"Single Column","index":1,"n_rows":9,"n_cols":4,"rows_kept":9,"cut":false,"hidden":false,"merged":[[1,1,1,3]]}
[]
[null,"VBA to Copy Formula from Cell Above"]
[]
[null,"Operations","Description","Formula"]
[null,{"$f":"4+2","v":6},"<< formula inside cell B5 is >>","=4+2"]
[null,{"$f":"4-2","v":2},"<< formula inside cell B6 is >>","=4-2"]
[null,{"$f":"4*2","v":8},"<< formula inside cell B7 is >>","=4*2"]
[null,{"$f":"4/2","v":2},"<< formula inside cell B8 is >>","=4/2"]
[null,{"$f":"4/2","v":2}]

{"sheet":"Entire Rows","index":2,"n_rows":11,"n_cols":4,"rows_kept":11,"cut":false,"hidden":false,"merged":[[1,1,1,3]]}
[]
[null,"VBA to Copy Formula from Cell Above"]
[]
[null,"Operations","Description","Formula"]
[null,{"$f":"4+2","v":6},"<< formula inside cell B5 is >>","=4+2"]
[null,{"$f":"4-2","v":2},"<< formula inside cell B6 is >>","=4-2"]
[null,{"$f":"4-2","v":2},"<< formula inside cell B6 is >>","=4-2"]
[null,{"$f":"4-2","v":2},"<< formula inside cell B6 is >>","=4-2"]
[null,{"$f":"4-2","v":2},"<< formula inside cell B6 is >>","=4-2"]
[null,{"$f":"4*2","v":8},"<< formula inside cell B7 is >>","=4*2"]
[null,{"$f":"4/2","v":2},"<< formula inside cell B8 is >>","=4/2"]

{"sheet":"Intervals","index":3,"n_rows":10,"n_cols":4,"rows_kept":10,"cut":false,"hidden":false,"merged":[[1,1,1,3]]}
[]
[null,"VBA to Copy Formula from Cell Above"]
[]
[null,"Operations","Description","Formula"]
[null,{"$f":"4+2","v":6},"<< formula inside cell B5 is >>","=4+2"]
[null,{"$f":"4-2","v":2},"<< formula inside cell B6 is >>","=4-2"]
[null,{"$f":"4*2","v":8},"<< formula inside cell B7 is >>","=4*2"]
[null,{"$f":"4/2","v":2},"<< formula inside cell B8 is >>","=4/2"]
[]
[null,{"$f":"4*2","v":8}]

{"sheet":"Last Row","index":4,"n_rows":9,"n_cols":4,"rows_kept":9,"cut":false,"hidden":false,"merged":[[1,1,1,3]]}
[]
[null,"VBA to Copy Formula from Cell Above"]
[]
[null,"Operations","Description","Formula"]
[null,{"$f":"4+2","v":6},"<< formula inside cell B5 is >>","=4+2"]
[null,{"$f":"4-2","v":2},"<< formula inside cell B6 is >>","=4-2"]
[null,{"$f":"4*2","v":8},"<< formula inside cell B7 is >>","=4*2"]
[null,{"$f":"4/2","v":2},"<< formula inside cell B8 is >>","=4/2"]
[null,{"$f":"4/2","v":2},"<< formula inside cell B8 is >>","=4/2"]

{"sheet":"Copy Selected","index":5,"n_rows":9,"n_cols":4,"rows_kept":9,"cut":false,"hidden":false,"merged":[[1,1,1,3]]}
[]
[null,"VBA to Copy Formula from Cell Above"]
[]
[null,"Operations","Description","Formula"]
[null,{"$f":"4+2","v":6},"<< formula inside cell B5 is >>","=4+2"]
[null,{"$f":"4-2","v":2},"<< formula inside cell B6 is >>","=4-2"]
[null,{"$f":"4-2","v":2}]
[null,{"$f":"4*2","v":8},"<< formula inside cell B7 is >>","=4*2"]
[null,{"$f":"4/2","v":2},"<< formula inside cell B8 is >>","=4/2"]

{"sheet":"All from Above","index":6,"n_rows":14,"n_cols":4,"rows_kept":14,"cut":false,"hidden":false,"merged":[[1,1,1,3]]}
[]
[null,"VBA to Copy Formula from Cell Above"]
[]
[null,"Operations","Description","Formula"]
[null,{"$f":"4+2","v":6},"<< formula inside cell B5 is >>","=4+2"]
[null,{"$f":"4-2","v":2},"<< formula inside cell B6 is >>","=4-2"]
[null,{"$f":"4*2","v":8},"<< formula inside cell B7 is >>","=4*2"]
[null,{"$f":"4/2","v":2},"<< formula inside cell B8 is >>","=4/2"]
[]
[null,"Operations","Description","Formula"]
[null,{"$f":"4+2","v":6},"<< formula inside cell B5 is >>","=4+2"]
[null,{"$f":"4-2","v":2},"<< formula inside cell B6 is >>","=4-2"]
[null,{"$f":"4*2","v":8},"<< formula inside cell B7 is >>","=4*2"]
[null,{"$f":"4/2","v":2},"<< formula inside cell B8 is >>","=4/2"]

{"sheet":"Clear Copy Paste","index":7,"n_rows":8,"n_cols":4,"rows_kept":8,"cut":false,"hidden":false,"merged":[[1,1,1,3]]}
[]
[null,"VBA to Copy Formula from Cell Above"]
[]
[null,"Operations","Description","Formula"]
[null,{"$f":"4+2","v":6},"<< formula inside cell B5 is >>","=4+2"]
[null,{"$f":"4+2","v":6}]
[null,{"$f":"4*2","v":8},"<< formula inside cell B7 is >>","=4*2"]
[null,{"$f":"4/2","v":2},"<< formula inside cell B8 is >>","=4/2"]

{"sheet":"Shift Down","index":8,"n_rows":9,"n_cols":4,"rows_kept":9,"cut":false,"hidden":false,"merged":[[1,1,1,3]]}
[]
[null,"VBA to Copy Formula from Cell Above"]
[]
[null,"Operations","Description","Formula"]
[null,{"$f":"4+2","v":6},"<< formula inside cell B5 is >>","=4+2"]
[null,{"$f":"4+2","v":6},"<< formula inside cell B6 is >>","=4-2"]
[null,{"$f":"4-2","v":2},"<< formula inside cell B7 is >>","=4*2"]
[null,{"$f":"4*2","v":8},"<< formula inside cell B8 is >>","=4/2"]
[null,{"$f":"4/2","v":2}]

{"sheet":"Shift Down Multiple","index":9,"n_rows":11,"n_cols":4,"rows_kept":11,"cut":false,"hidden":false,"merged":[[1,1,1,3]]}
[]
[null,"VBA to Copy Formula from Cell Above"]
[]
[null,"Operations","Description","Formula"]
[null,{"$f":"4+2","v":6},"<< formula inside cell B5 is >>","=4+2"]
[null,{"$f":"4-2","v":2},"<< formula inside cell B6 is >>","=4-2"]
[null,{"$f":"4-2","v":2},"<< formula inside cell B7 is >>","=4*2"]
[null,{"$f":"4-2","v":2},"<< formula inside cell B8 is >>","=4/2"]
[null,{"$f":"4-2","v":2}]
[null,{"$f":"4*2","v":8}]
[null,{"$f":"4/2","v":2}]

{"sheet":"Multiple Copies","index":10,"n_rows":17,"n_cols":4,"rows_kept":17,"cut":false,"hidden":false,"merged":[[1,1,1,3]]}
[]
[null,"VBA to Copy Formula from Cell Above"]
[]
[null,"Operations","Description","Formula"]
[null,{"$f":"4+2","v":6},"<< formula inside cell B5 is >>","=4+2"]
[null,{"$f":"4-2","v":2},"<< formula inside cell B6 is >>","=4-2"]
[null,{"$f":"4*2","v":8},"<< formula inside cell B7 is >>","=4*2"]
[null,{"$f":"4/2","v":2},"<< formula inside cell B8 is >>","=4/2"]
[null,{"$f":"4/2","v":2}]
[null,2]
[null,2]
[null,2]
[null,2]
[null,2]
[null,2]
[null,2]
[null,2]